[Event "Titled Tuesday Blitz August 1 Early 2023"]
[White "Garcia Almaguer, Juan Manuel"]
[Black "Onufrienko, Vladislav"]
[WhiteFideId "5110491"]
[BlackFideId "13804332"]
[WhiteElo "2494"]
[BlackElo "2569"]
[Result "0-1"]
[Round "11"]
[TimeControl "180+1"]
[Date "2023.08.01"]
[WhiteClock "0:00:09"]
[BlackClock "0:00:08"]
[Board "71"]

1. e4 {[%clk 0:03:00]}  Nf6 {[%clk 0:03:00]} 2. e5 {[%clk 0:02:58]}  Nd5 {[%clk 0:03:00]} 3. d4 {[%clk 0:02:58]}  d6 {[%clk 0:03:01]} 4. c4 {[%clk 0:02:57]}  Nb6 {[%clk 0:03:01]} 5. f4 {[%clk 0:02:56]}  dxe5 {[%clk 0:03:01]} 6. fxe5 {[%clk 0:02:57]}  Nc6 {[%clk 0:03:02]} 7. Be3 {[%clk 0:02:57]}  Bf5 {[%clk 0:03:03]} 8. Nf3 {[%clk 0:02:57]}  e6 {[%clk 0:03:03]} 9. a3 {[%clk 0:02:56]}  f6 {[%clk 0:03:03]} 10. Qe2 {[%clk 0:02:45]}  fxe5 {[%clk 0:02:46]} 11. dxe5 {[%clk 0:02:40]}  Bg4 {[%clk 0:02:40]} 12. Nbd2 {[%clk 0:02:39]}  Be7 {[%clk 0:02:08]} 13. O-O-O {[%clk 0:02:26]}  O-O {[%clk 0:01:54]} 14. h3 {[%clk 0:02:25]}  Bh5 {[%clk 0:01:43]} 15. Ne4 {[%clk 0:01:42]}  Qe8 {[%clk 0:01:35]} 16. g4 {[%clk 0:01:12]}  Bg6 {[%clk 0:01:34]} 17. Nc5 {[%clk 0:01:12]}  Bxc5 {[%clk 0:00:45]} 18. Bxc5 {[%clk 0:01:13]}  Rf4 {[%clk 0:00:46]} 19. Bxb6 {[%clk 0:01:03]}  axb6 {[%clk 0:00:47]} 20. Qe3 {[%clk 0:00:52]}  Re4 {[%clk 0:00:33]} 21. Qc3 {[%clk 0:00:51]}  Rf4 {[%clk 0:00:22]} 22. Be2 {[%clk 0:00:48]}  h6 {[%clk 0:00:20]} 23. Rhf1 {[%clk 0:00:47]}  Qe7 {[%clk 0:00:18]} 24. Nd2 {[%clk 0:00:15]}  Raf8 {[%clk 0:00:18]} 25. Rxf4 {[%clk 0:00:14]}  Rxf4 {[%clk 0:00:18]} 26. Rf1 {[%clk 0:00:15]}  Qg5 {[%clk 0:00:18]} 27. Rxf4 {[%clk 0:00:14]}  Qxf4 {[%clk 0:00:19]} 28. c5 {[%clk 0:00:14]}  bxc5 {[%clk 0:00:16]} 29. Bc4 {[%clk 0:00:14]}  Bf7 {[%clk 0:00:11]} 30. Bb5 {[%clk 0:00:12]}  Nxe5 {[%clk 0:00:09]} 31. Qxc5 {[%clk 0:00:13]}  Nf3 {[%clk 0:00:08]} 32. Qf2 {[%clk 0:00:09]}  Qxd2+ {[%clk 0:00:07]} 33. Qxd2 {[%clk 0:00:10]}  Nxd2 {[%clk 0:00:08]} 34. Kxd2 {[%clk 0:00:11]}  Kf8 {[%clk 0:00:08]} 35. a4 {[%clk 0:00:10]}  Ke7 {[%clk 0:00:08]} 36. a5 {[%clk 0:00:10]}  Kd6 {[%clk 0:00:06]} 37. b4 {[%clk 0:00:10]}  e5 {[%clk 0:00:06]} 38. Kc3 {[%clk 0:00:10]}  Bd5 {[%clk 0:00:06]} 39. Be2 {[%clk 0:00:09]}  g5 {[%clk 0:00:07]} 40. Bd3 {[%clk 0:00:09]}  Bg2 {[%clk 0:00:06]} 41. Bf5 {[%clk 0:00:06]}  c6 {[%clk 0:00:06]} 42. Kc4 {[%clk 0:00:03]}  Bxh3 {[%clk 0:00:05]} 43. b5 {[%clk 0:00:04]}  cxb5+ {[%clk 0:00:04]} 44. Kxb5 {[%clk 0:00:05]}  Bg2 {[%clk 0:00:04]} 45. Kb6 {[%clk 0:00:05]}  Bd5 {[%clk 0:00:03]} 46. Bc8 {[%clk 0:00:05]}  e4 {[%clk 0:00:03]} 47. Bxb7 {[%clk 0:00:06]}  Bxb7 {[%clk 0:00:03]} 48. Kxb7 {[%clk 0:00:06]}  e3 {[%clk 0:00:04]} 49. a6 {[%clk 0:00:07]}  e2 {[%clk 0:00:04]} 50. a7 {[%clk 0:00:08]}  e1=Q {[%clk 0:00:04]} 51. a8=Q {[%clk 0:00:09]}  Qh1+ {[%clk 0:00:05]} 52. Kb8 {[%clk 0:00:08]}  Qxa8+ {[%clk 0:00:06]} 53. Kxa8 {[%clk 0:00:09]}  Ke5 {[%clk 0:00:06]} 54. Kb7 {[%clk 0:00:10]}  Kf4 {[%clk 0:00:07]} 55. Kc6 {[%clk 0:00:11]}  Kxg4 {[%clk 0:00:08]} 56. Kd5 {[%clk 0:00:09]}  Kf3 {[%clk 0:00:08]} 0-1


[Site "https://www.chess.com"]

[Event "Titled Tuesday Blitz August 1 Early 2023"]
[White "Grossboss19"]
[Black "Tologon tegin, Semetei"]
[BlackFideId "13800574"]
[WhiteElo "2491"]
[BlackElo "2566"]
[Result "0-1"]
[Round "11"]
[TimeControl "180+1"]
[Date "2023.08.01"]
[WhiteClock "0:00:00"]
[BlackClock "0:00:07"]
[Board "72"]

1. c4 {[%clk 0:02:55]}  e5 {[%clk 0:02:53]} 2. Nc3 {[%clk 0:02:54]}  Nf6 {[%clk 0:02:51]} 3. g3 {[%clk 0:02:54]}  Nc6 {[%clk 0:02:48]} 4. Nf3 {[%clk 0:02:53]}  Bc5 {[%clk 0:02:46]} 5. Bg2 {[%clk 0:02:52]}  d6 {[%clk 0:02:44]} 6. O-O {[%clk 0:02:52]}  h6 {[%clk 0:02:43]} 7. a3 {[%clk 0:02:51]}  a5 {[%clk 0:02:42]} 8. d3 {[%clk 0:02:45]}  O-O {[%clk 0:02:41]} 9. Rb1 {[%clk 0:02:44]}  Be6 {[%clk 0:02:37]} 10. Ne1 {[%clk 0:02:40]}  Qd7 {[%clk 0:02:12]} 11. Nc2 {[%clk 0:02:36]}  Bh3 {[%clk 0:02:00]} 12. b4 {[%clk 0:02:34]}  axb4 {[%clk 0:01:59]} 13. axb4 {[%clk 0:02:35]}  Bb6 {[%clk 0:01:57]} 14. b5 {[%clk 0:02:33]}  Nd4 {[%clk 0:01:57]} 15. Ne3 {[%clk 0:02:27]}  Bc5 {[%clk 0:01:26]} 16. Ned5 {[%clk 0:02:10]}  Nxd5 {[%clk 0:01:23]} 17. Nxd5 {[%clk 0:02:09]}  c6 {[%clk 0:01:03]} 18. bxc6 {[%clk 0:01:51]}  bxc6 {[%clk 0:01:04]} 19. Bxh3 {[%clk 0:01:33]}  Qxh3 {[%clk 0:01:02]} 20. Ne7+ {[%clk 0:01:33]}  Kh7 {[%clk 0:01:01]} 21. e3 {[%clk 0:01:34]}  Ne6 {[%clk 0:00:58]} 22. Nxc6 {[%clk 0:01:11]}  f5 {[%clk 0:00:58]} 23. d4 {[%clk 0:01:04]}  f4 {[%clk 0:00:55]} 24. exf4 {[%clk 0:01:02]}  exf4 {[%clk 0:00:56]} 25. Qd3+ {[%clk 0:00:51]}  Kh8 {[%clk 0:00:55]} 26. Re1 {[%clk 0:00:48]}  Bxd4 {[%clk 0:00:44]} 27. Nxd4 {[%clk 0:00:36]}  Nxd4 {[%clk 0:00:43]} 28. Kh1 {[%clk 0:00:10]}  fxg3 {[%clk 0:00:20]} 29. Qxg3 {[%clk 0:00:08]}  Qf5 {[%clk 0:00:19]} 30. Be3 {[%clk 0:00:06]}  Nf3 {[%clk 0:00:18]} 31. Red1 {[%clk 0:00:06]}  Qe4 {[%clk 0:00:14]} 32. Qg2 {[%clk 0:00:05]}  Rf6 {[%clk 0:00:13]} 33. Rb4 {[%clk 0:00:03]}  Rg6 {[%clk 0:00:13]} 34. c5 {[%clk 0:00:03]}  Rxg2 {[%clk 0:00:13]} 35. Kxg2 {[%clk 0:00:01]}  Qg6+ {[%clk 0:00:10]} 36. Kxf3 {[%clk 0:00:01]}  Qh5+ {[%clk 0:00:10]} 37. Rg4 {[%clk 0:00:01]}  Rf8+ {[%clk 0:00:10]} 38. Kg3 {[%clk 0:00:01]}  dxc5 {[%clk 0:00:09]} 39. Rd7 {[%clk 0:00:01]}  Qe5+ {[%clk 0:00:09]} 40. Kg2 {[%clk 0:00:00]}  Rg8 {[%clk 0:00:07]} 0-1


[Site "https://www.chess.com"]

[Event "Titled Tuesday Blitz August 1 Early 2023"]
[White "Vlassov, Nikolai"]
[Black "Mendez Fortes, Eduardo Jesus"]
[WhiteFideId "4103360"]
[BlackFideId "3502376"]
[WhiteElo "2546"]
[BlackElo "2560"]
[Result "1-0"]
[Round "11"]
[TimeControl "180+1"]
[Date "2023.08.01"]
[WhiteClock "0:00:49"]
[BlackClock "0:01:49"]
[Board "74"]

1. e4 {[%clk 0:03:00]}  c5 {[%clk 0:02:58]} 2. c3 {[%clk 0:03:00]}  Nf6 {[%clk 0:02:59]} 3. e5 {[%clk 0:03:00]}  Nd5 {[%clk 0:02:59]} 4. d4 {[%clk 0:03:00]}  cxd4 {[%clk 0:03:00]} 5. cxd4 {[%clk 0:03:00]}  Nc6 {[%clk 0:03:00]} 6. Nc3 {[%clk 0:03:00]}  Nxc3 {[%clk 0:02:57]} 7. bxc3 {[%clk 0:03:01]}  d5 {[%clk 0:02:57]} 8. Bd3 {[%clk 0:03:00]}  e6 {[%clk 0:02:55]} 9. Qg4 {[%clk 0:02:55]}  h5 {[%clk 0:02:53]} 10. Qg3 {[%clk 0:02:55]}  g6 {[%clk 0:02:49]} 11. Nf3 {[%clk 0:02:54]}  Be7 {[%clk 0:02:49]} 12. O-O {[%clk 0:02:54]}  a6 {[%clk 0:02:49]} 13. a4 {[%clk 0:02:52]}  Bd7 {[%clk 0:02:49]} 14. Ba3 {[%clk 0:02:52]}  Bxa3 {[%clk 0:02:40]} 15. Rxa3 {[%clk 0:02:51]}  Qe7 {[%clk 0:02:40]} 16. Rb3 {[%clk 0:02:49]}  Na5 {[%clk 0:02:40]} 17. Rb4 {[%clk 0:02:48]}  Rc8 {[%clk 0:02:35]} 18. Bxg6 {[%clk 0:01:49]}  fxg6 {[%clk 0:02:30]} 19. Qxg6+ {[%clk 0:01:48]}  Kd8 {[%clk 0:02:30]} 20. Ng5 {[%clk 0:01:45]}  Kc7 {[%clk 0:02:26]} 21. h4 {[%clk 0:01:38]}  Rcg8 {[%clk 0:02:14]} 22. Qd3 {[%clk 0:01:32]}  Nc4 {[%clk 0:02:10]} 23. f4 {[%clk 0:01:23]}  Rf8 {[%clk 0:02:09]} 24. g3 {[%clk 0:01:13]}  Rhg8 {[%clk 0:02:08]} 25. Kh2 {[%clk 0:01:12]}  Be8 {[%clk 0:02:05]} 26. Rfb1 {[%clk 0:01:07]}  b6 {[%clk 0:02:03]} 27. Rxc4+ {[%clk 0:01:00]}  dxc4 {[%clk 0:02:03]} 28. Qxc4+ {[%clk 0:01:01]}  Kb7 {[%clk 0:02:03]} 29. Nxe6 {[%clk 0:00:49]}  Bf7 {[%clk 0:01:56]} 30. d5 {[%clk 0:00:48]}  Bxe6 {[%clk 0:01:55]} 31. Qc6+ {[%clk 0:00:48]}  Ka7 {[%clk 0:01:51]} 32. Qxb6+ {[%clk 0:00:48]}  Ka8 {[%clk 0:01:51]} 33. Qxa6+ {[%clk 0:00:48]}  Qa7 {[%clk 0:01:49]} 34. Qc6+ {[%clk 0:00:49]} 1-0


[Site "https://www.chess.com"]

[Event "Titled Tuesday Blitz August 1 Early 2023"]
[White "Gauri, Shankar"]
[Black "Han, Yichen"]
[WhiteFideId "5041350"]
[BlackFideId "1054430"]
[WhiteElo "2560"]
[BlackElo "2414"]
[Result "0-1"]
[Round "11"]
[TimeControl "180+1"]
[Date "2023.08.01"]
[WhiteClock "0:00:13"]
[BlackClock "0:00:05"]
[Board "75"]

1. d4 {[%clk 0:03:00]}  d5 {[%clk 0:02:57]} 2. Nf3 {[%clk 0:03:00]}  Nf6 {[%clk 0:02:55]} 3. c4 {[%clk 0:03:00]}  e6 {[%clk 0:02:55]} 4. g3 {[%clk 0:03:00]}  dxc4 {[%clk 0:02:51]} 5. Bg2 {[%clk 0:03:00]}  c6 {[%clk 0:02:52]} 6. O-O {[%clk 0:02:59]}  b5 {[%clk 0:02:52]} 7. a4 {[%clk 0:02:59]}  Bb7 {[%clk 0:02:51]} 8. Ne5 {[%clk 0:02:59]}  a6 {[%clk 0:02:48]} 9. axb5 {[%clk 0:02:56]}  axb5 {[%clk 0:02:49]} 10. Rxa8 {[%clk 0:02:57]}  Bxa8 {[%clk 0:02:49]} 11. Nc3 {[%clk 0:02:54]}  Qb6 {[%clk 0:02:41]} 12. e4 {[%clk 0:02:28]}  Be7 {[%clk 0:02:34]} 13. Be3 {[%clk 0:02:27]}  Qd8 {[%clk 0:02:24]} 14. Qa1 {[%clk 0:02:24]}  Nbd7 {[%clk 0:02:17]} 15. Qa7 {[%clk 0:02:08]}  O-O {[%clk 0:02:13]} 16. Ra1 {[%clk 0:02:07]}  b4 {[%clk 0:01:54]} 17. Ne2 {[%clk 0:02:00]}  Nxe5 {[%clk 0:01:40]} 18. dxe5 {[%clk 0:01:59]}  Ng4 {[%clk 0:01:41]} 19. Bb6 {[%clk 0:01:55]}  Qd2 {[%clk 0:01:19]} 20. Bf1 {[%clk 0:01:02]}  Qxb2 {[%clk 0:00:51]} 21. Ra2 {[%clk 0:00:36]}  Qb1 {[%clk 0:00:37]} 22. Ra1 {[%clk 0:00:37]}  Qxe4 {[%clk 0:00:32]} 23. Qxe7 {[%clk 0:00:28]}  c5 {[%clk 0:00:27]} 24. Rxa8 {[%clk 0:00:28]}  Rxa8 {[%clk 0:00:23]} 25. Bd8 {[%clk 0:00:15]}  h6 {[%clk 0:00:11]} 26. Qe8+ {[%clk 0:00:11]}  Kh7 {[%clk 0:00:11]} 27. h3 {[%clk 0:00:09]}  Nxe5 {[%clk 0:00:10]} 28. Nf4 {[%clk 0:00:04]}  Nf3+ {[%clk 0:00:09]} 29. Kg2 {[%clk 0:00:03]}  Ra1 {[%clk 0:00:03]} 30. Qxf7 {[%clk 0:00:01]}  Nh4+ {[%clk 0:00:03]} 31. Kh2 {[%clk 0:00:02]}  Rxf1 {[%clk 0:00:02]} 32. gxh4 {[%clk 0:00:02]}  Qh1+ {[%clk 0:00:02]} 33. Kg3 {[%clk 0:00:03]}  Rg1+ {[%clk 0:00:02]} 34. Ng2 {[%clk 0:00:03]}  Qxg2+ {[%clk 0:00:03]} 35. Kf4 {[%clk 0:00:04]}  Qxf2+ {[%clk 0:00:04]} 36. Ke5 {[%clk 0:00:05]}  Qxf7 {[%clk 0:00:04]} 37. Kd6 {[%clk 0:00:05]}  Qf4+ {[%clk 0:00:04]} 38. Kd7 {[%clk 0:00:05]}  Qd4+ {[%clk 0:00:04]} 39. Kc8 {[%clk 0:00:06]}  Qxd8+ {[%clk 0:00:03]} 40. Kxd8 {[%clk 0:00:07]}  c3 {[%clk 0:00:04]} 41. h5 {[%clk 0:00:07]}  c2 {[%clk 0:00:05]} 42. h4 {[%clk 0:00:08]}  c1=Q {[%clk 0:00:06]} 43. Ke7 {[%clk 0:00:08]}  b3 {[%clk 0:00:06]} 44. Kf7 {[%clk 0:00:09]}  b2 {[%clk 0:00:06]} 45. Ke7 {[%clk 0:00:10]}  b1=Q {[%clk 0:00:06]} 46. Kf7 {[%clk 0:00:11]}  Qf5+ {[%clk 0:00:06]} 47. Ke7 {[%clk 0:00:12]}  Qf6+ {[%clk 0:00:07]} 48. Ke8 {[%clk 0:00:12]}  e5 {[%clk 0:00:06]} 49. Kd7 {[%clk 0:00:12]}  Qd2+ {[%clk 0:00:06]} 50. Ke8 {[%clk 0:00:13]}  Qdd8# {[%clk 0:00:05]} 0-1


[Site "https://www.chess.com"]

[Event "Titled Tuesday Blitz August 1 Early 2023"]
[White "Panesar Vedant"]
[Black "Ljukin, Sergei"]
[WhiteFideId "35033018"]
[BlackFideId "14102200"]
[WhiteElo "2693"]
[BlackElo "2494"]
[Result "1-0"]
[Round "11"]
[TimeControl "180+1"]
[Date "2023.08.01"]
[WhiteClock "0:00:06"]
[BlackClock "0:00:00"]
[Board "79"]

1. d4 {[%clk 0:03:00]}  d5 {[%clk 0:02:49]} 2. c4 {[%clk 0:02:59]}  c6 {[%clk 0:02:49]} 3. Nf3 {[%clk 0:02:59]}  Nf6 {[%clk 0:02:50]} 4. Nc3 {[%clk 0:03:00]}  dxc4 {[%clk 0:02:50]} 5. a4 {[%clk 0:03:00]}  Bf5 {[%clk 0:02:50]} 6. Ne5 {[%clk 0:03:00]}  Na6 {[%clk 0:02:49]} 7. f3 {[%clk 0:02:55]}  Nd7 {[%clk 0:02:48]} 8. Nxc4 {[%clk 0:02:50]}  e5 {[%clk 0:02:48]} 9. e4 {[%clk 0:02:49]}  exd4 {[%clk 0:02:48]} 10. exf5 {[%clk 0:02:35]}  dxc3 {[%clk 0:02:47]} 11. bxc3 {[%clk 0:02:36]}  Ndc5 {[%clk 0:02:15]} 12. Qc2 {[%clk 0:02:31]}  Qd5 {[%clk 0:02:04]} 13. Be2 {[%clk 0:02:26]}  O-O-O {[%clk 0:02:03]} 14. O-O {[%clk 0:02:26]}  Nd3 {[%clk 0:02:03]} 15. Ne3 {[%clk 0:02:14]}  Bc5 {[%clk 0:01:49]} 16. Kh1 {[%clk 0:02:03]}  Bxe3 {[%clk 0:01:47]} 17. Bxe3 {[%clk 0:02:03]}  Qxf5 {[%clk 0:01:39]} 18. Ra2 {[%clk 0:01:26]}  Rhe8 {[%clk 0:01:10]} 19. Bd4 {[%clk 0:01:17]}  Rxd4 {[%clk 0:00:35]} 20. cxd4 {[%clk 0:01:14]}  Nab4 {[%clk 0:00:35]} 21. Bxd3 {[%clk 0:01:07]}  Qxd3 {[%clk 0:00:17]} 22. Qxd3 {[%clk 0:01:02]}  Nxd3 {[%clk 0:00:17]} 23. Kg1 {[%clk 0:00:44]}  Nb4 {[%clk 0:00:15]} 24. Rd2 {[%clk 0:00:44]}  a5 {[%clk 0:00:14]} 25. Kf2 {[%clk 0:00:44]}  Kd7 {[%clk 0:00:14]} 26. Re1 {[%clk 0:00:43]}  Rd8 {[%clk 0:00:13]} 27. Re5 {[%clk 0:00:42]}  Nd5 {[%clk 0:00:12]} 28. Rh5 {[%clk 0:00:39]}  h6 {[%clk 0:00:12]} 29. Rb2 {[%clk 0:00:37]}  b6 {[%clk 0:00:10]} 30. Re2 {[%clk 0:00:30]}  Kd6 {[%clk 0:00:10]} 31. Rb2 {[%clk 0:00:22]}  Rb8 {[%clk 0:00:08]} 32. g3 {[%clk 0:00:19]}  b5 {[%clk 0:00:07]} 33. Re5 {[%clk 0:00:10]}  b4 {[%clk 0:00:06]} 34. Re3 {[%clk 0:00:09]}  Rd8 {[%clk 0:00:04]} 35. Re4 {[%clk 0:00:09]}  Nc3 {[%clk 0:00:03]} 36. Re1 {[%clk 0:00:09]}  Kd5 {[%clk 0:00:03]} 37. Rd2 {[%clk 0:00:06]}  Kc4 {[%clk 0:00:03]} 38. Re5 {[%clk 0:00:06]}  Rd5 {[%clk 0:00:02]} 39. Re7 {[%clk 0:00:06]}  Rxd4 {[%clk 0:00:02]} 40. Rxd4+ {[%clk 0:00:06]}  Kxd4 {[%clk 0:00:02]} 41. Rxf7 {[%clk 0:00:06]}  b3 {[%clk 0:00:03]} 42. Rb7 {[%clk 0:00:07]}  Kc4 {[%clk 0:00:00]} 43. Ke1 {[%clk 0:00:06]} 1-0


[Site "https://www.chess.com"]

[Event "Titled Tuesday Blitz August 1 Early 2023"]
[White "Mmukka"]
[Black "Gunina, Valentina"]
[BlackFideId "4167570"]
[WhiteElo "2488"]
[BlackElo "2678"]
[Result "0-1"]
[Round "11"]
[TimeControl "180+1"]
[Date "2023.08.01"]
[WhiteClock "0:00:01"]
[BlackClock "0:01:00"]
[Board "80"]

1. e4 {[%clk 0:03:00]}  c6 {[%clk 0:03:00]} 2. d4 {[%clk 0:02:58]}  d5 {[%clk 0:03:00]} 3. exd5 {[%clk 0:02:58]}  cxd5 {[%clk 0:03:00]} 4. Bd3 {[%clk 0:02:59]}  Nc6 {[%clk 0:03:00]} 5. c3 {[%clk 0:02:59]}  e6 {[%clk 0:03:00]} 6. Bf4 {[%clk 0:02:49]}  Nge7 {[%clk 0:02:58]} 7. Nf3 {[%clk 0:02:47]}  Ng6 {[%clk 0:02:51]} 8. Bg3 {[%clk 0:02:47]}  Bd6 {[%clk 0:02:50]} 9. O-O {[%clk 0:02:41]}  Nf4 {[%clk 0:02:47]} 10. Bb5 {[%clk 0:02:24]}  g5 {[%clk 0:02:44]} 11. Re1 {[%clk 0:02:20]}  h5 {[%clk 0:02:39]} 12. h4 {[%clk 0:02:04]}  gxh4 {[%clk 0:02:33]} 13. Bxh4 {[%clk 0:02:04]}  Qb6 {[%clk 0:02:32]} 14. Bxc6+ {[%clk 0:02:00]}  bxc6 {[%clk 0:02:32]} 15. Nbd2 {[%clk 0:01:37]}  Rg8 {[%clk 0:02:30]} 16. g3 {[%clk 0:01:37]}  Qxb2 {[%clk 0:02:19]} 17. Re3 {[%clk 0:01:25]}  Ba6 {[%clk 0:02:18]} 18. Rb1 {[%clk 0:00:56]}  Qa3 {[%clk 0:01:47]} 19. c4 {[%clk 0:00:54]}  Qa5 {[%clk 0:01:46]} 20. c5 {[%clk 0:00:52]}  Be7 {[%clk 0:01:40]} 21. Bxe7 {[%clk 0:00:46]}  Kxe7 {[%clk 0:01:40]} 22. Kh2 {[%clk 0:00:45]}  Nd3 {[%clk 0:01:33]} 23. Rxd3 {[%clk 0:00:31]}  Bxd3 {[%clk 0:01:32]} 24. Rb7+ {[%clk 0:00:31]}  Ke8 {[%clk 0:01:21]} 25. Ne5 {[%clk 0:00:31]}  Bg6 {[%clk 0:01:10]} 26. Ndf3 {[%clk 0:00:16]}  Qxa2 {[%clk 0:01:07]} 27. Kg2 {[%clk 0:00:14]}  Be4 {[%clk 0:01:07]} 28. Nxf7 {[%clk 0:00:14]}  Rg7 {[%clk 0:01:00]} 29. Nd6+ {[%clk 0:00:13]}  Kf8 {[%clk 0:01:01]} 30. Rxg7 {[%clk 0:00:13]}  Kxg7 {[%clk 0:01:01]} 31. Nxe4 {[%clk 0:00:13]}  dxe4 {[%clk 0:01:01]} 32. Ng5 {[%clk 0:00:12]}  e3 {[%clk 0:01:01]} 33. Qe1 {[%clk 0:00:02]}  Qxf2+ {[%clk 0:01:00]} 34. Qxf2 {[%clk 0:00:03]}  exf2 {[%clk 0:01:00]} 35. Kxf2 {[%clk 0:00:04]}  a5 {[%clk 0:01:00]} 36. Nxe6+ {[%clk 0:00:04]}  Kf6 {[%clk 0:01:01]} 37. Nc7 {[%clk 0:00:04]}  Ra7 {[%clk 0:00:59]} 38. Ne8+ {[%clk 0:00:05]}  Ke6 {[%clk 0:00:59]} 39. Nd6 {[%clk 0:00:05]}  a4 {[%clk 0:01:00]} 40. Nc4 {[%clk 0:00:04]}  a3 {[%clk 0:01:00]} 41. Ke3 {[%clk 0:00:01]}  a2 {[%clk 0:01:00]} 0-1


[Site "https://www.chess.com"]

[Event "Titled Tuesday Blitz August 1 Early 2023"]
[White "Polaczek, Richard"]
[Black "Morefield, Jason"]
[WhiteFideId "200026"]
[BlackFideId "30920825"]
[WhiteElo "2476"]
[BlackElo "2677"]
[Result "0-1"]
[Round "11"]
[TimeControl "180+1"]
[Date "2023.08.01"]
[WhiteClock "0:00:00"]
[BlackClock "0:00:27"]
[Board "81"]

1. Nf3 {[%clk 0:02:57]}  d5 {[%clk 0:02:57]} 2. d4 {[%clk 0:02:55]}  Nf6 {[%clk 0:02:56]} 3. c4 {[%clk 0:02:54]}  c6 {[%clk 0:02:56]} 4. cxd5 {[%clk 0:02:51]}  cxd5 {[%clk 0:02:56]} 5. Nc3 {[%clk 0:02:52]}  Nc6 {[%clk 0:02:56]} 6. Bf4 {[%clk 0:02:52]}  a6 {[%clk 0:02:57]} 7. e3 {[%clk 0:02:52]}  Bf5 {[%clk 0:02:57]} 8. h3 {[%clk 0:02:40]}  Rc8 {[%clk 0:02:50]} 9. Ne5 {[%clk 0:02:33]}  Qb6 {[%clk 0:02:20]} 10. Qd2 {[%clk 0:01:52]}  e6 {[%clk 0:02:08]} 11. f3 {[%clk 0:01:43]}  Nxe5 {[%clk 0:02:05]} 12. Bxe5 {[%clk 0:01:40]}  Nd7 {[%clk 0:02:02]} 13. Bf4 {[%clk 0:01:32]}  Be7 {[%clk 0:01:56]} 14. Be2 {[%clk 0:01:29]}  Bh4+ {[%clk 0:01:51]} 15. g3 {[%clk 0:01:28]}  Be7 {[%clk 0:01:51]} 16. g4 {[%clk 0:01:25]}  Bh4+ {[%clk 0:01:50]} 17. Kf1 {[%clk 0:01:25]}  Bg6 {[%clk 0:01:50]} 18. Kg2 {[%clk 0:01:25]}  O-O {[%clk 0:01:48]} 19. Rac1 {[%clk 0:01:20]}  Qa5 {[%clk 0:01:27]} 20. Rhd1 {[%clk 0:01:06]}  Rc6 {[%clk 0:01:21]} 21. g5 {[%clk 0:00:53]}  Rfc8 {[%clk 0:01:14]} 22. Bd3 {[%clk 0:00:33]}  Qd8 {[%clk 0:01:01]} 23. Bxg6 {[%clk 0:00:21]}  hxg6 {[%clk 0:01:02]} 24. e4 {[%clk 0:00:21]}  Nf8 {[%clk 0:00:51]} 25. Ne2 {[%clk 0:00:17]}  Rxc1 {[%clk 0:00:47]} 26. Rxc1 {[%clk 0:00:17]}  Rxc1 {[%clk 0:00:48]} 27. Qxc1 {[%clk 0:00:17]}  Nh7 {[%clk 0:00:45]} 28. Qc5 {[%clk 0:00:11]}  Bxg5 {[%clk 0:00:39]} 29. Bg3 {[%clk 0:00:10]}  Be7 {[%clk 0:00:37]} 30. Qa7 {[%clk 0:00:09]}  Qd7 {[%clk 0:00:34]} 31. Qb8+ {[%clk 0:00:08]}  Bf8 {[%clk 0:00:33]} 32. exd5 {[%clk 0:00:07]}  Qxd5 {[%clk 0:00:32]} 33. Nc3 {[%clk 0:00:06]}  Qc6 {[%clk 0:00:30]} 34. Ne4 {[%clk 0:00:03]}  Nf6 {[%clk 0:00:27]} 35. Bd6 {[%clk 0:00:00]}  Nd7 {[%clk 0:00:27]} 0-1


[Site "https://www.chess.com"]

[Event "Titled Tuesday Blitz August 1 Early 2023"]
[White "Kuznetsov, Mikhail"]
[Black "Nagare Kaivalya Sandip"]
[WhiteFideId "4117190"]
[BlackFideId "25957929"]
[WhiteElo "2472"]
[BlackElo "2659"]
[Result "0-1"]
[Round "11"]
[TimeControl "180+1"]
[Date "2023.08.01"]
[WhiteClock "0:00:00"]
[BlackClock "0:01:16"]
[Board "83"]

1. Nf3 {[%clk 0:02:52]}  d5 {[%clk 0:02:59]} 2. g3 {[%clk 0:02:51]}  Nf6 {[%clk 0:02:58]} 3. Bg2 {[%clk 0:02:51]}  Bg4 {[%clk 0:02:58]} 4. O-O {[%clk 0:02:51]}  Nbd7 {[%clk 0:02:58]} 5. d4 {[%clk 0:02:51]}  e6 {[%clk 0:02:56]} 6. Nbd2 {[%clk 0:02:50]}  Bd6 {[%clk 0:02:55]} 7. Re1 {[%clk 0:02:49]}  O-O {[%clk 0:02:55]} 8. e4 {[%clk 0:02:46]}  dxe4 {[%clk 0:02:54]} 9. Nxe4 {[%clk 0:02:47]}  Nxe4 {[%clk 0:02:55]} 10. Rxe4 {[%clk 0:02:48]}  Nf6 {[%clk 0:02:54]} 11. Re1 {[%clk 0:02:48]}  c5 {[%clk 0:02:54]} 12. Be3 {[%clk 0:02:40]}  Nd5 {[%clk 0:02:51]} 13. dxc5 {[%clk 0:02:35]}  Nxe3 {[%clk 0:02:51]} 14. Rxe3 {[%clk 0:02:26]}  Bxc5 {[%clk 0:02:51]} 15. Rd3 {[%clk 0:02:25]}  Qb6 {[%clk 0:02:50]} 16. Qe2 {[%clk 0:02:21]}  Qxb2 {[%clk 0:02:50]} 17. Rad1 {[%clk 0:02:20]}  Qxa2 {[%clk 0:02:50]} 18. h3 {[%clk 0:02:11]}  Bf5 {[%clk 0:02:50]} 19. Rc3 {[%clk 0:02:10]}  Rac8 {[%clk 0:02:47]} 20. Kh2 {[%clk 0:02:08]}  Bb6 {[%clk 0:02:44]} 21. Rxc8 {[%clk 0:02:06]}  Rxc8 {[%clk 0:02:45]} 22. Nd4 {[%clk 0:02:05]}  Bxc2 {[%clk 0:02:36]} 23. Nxc2 {[%clk 0:01:56]}  Qxc2 {[%clk 0:02:34]} 24. Rd2 {[%clk 0:01:51]}  Qc4 {[%clk 0:02:25]} 25. Qf3 {[%clk 0:01:44]}  Qc3 {[%clk 0:02:21]} 26. Qxb7 {[%clk 0:01:33]}  Qxd2 {[%clk 0:02:20]} 27. Qxc8+ {[%clk 0:01:32]}  Qd8 {[%clk 0:02:21]} 28. Qc2 {[%clk 0:01:23]}  g6 {[%clk 0:02:21]} 29. h4 {[%clk 0:01:12]}  Qd4 {[%clk 0:02:20]} 30. Kg1 {[%clk 0:01:09]}  Kg7 {[%clk 0:02:17]} 31. h5 {[%clk 0:00:56]}  a5 {[%clk 0:02:17]} 32. hxg6 {[%clk 0:00:22]}  hxg6 {[%clk 0:02:13]} 33. Bc6 {[%clk 0:00:21]}  Kf6 {[%clk 0:01:59]} 34. Kg2 {[%clk 0:00:18]}  Ke5 {[%clk 0:01:50]} 35. Qe2+ {[%clk 0:00:15]}  Kd6 {[%clk 0:01:50]} 36. Be8 {[%clk 0:00:12]}  Qxf2+ {[%clk 0:01:39]} 37. Qxf2 {[%clk 0:00:10]}  Bxf2 {[%clk 0:01:39]} 38. Kxf2 {[%clk 0:00:10]}  Ke7 {[%clk 0:01:39]} 39. Ba4 {[%clk 0:00:10]}  f5 {[%clk 0:01:39]} 40. Ke3 {[%clk 0:00:09]}  e5 {[%clk 0:01:39]} 41. g4 {[%clk 0:00:07]}  fxg4 {[%clk 0:01:34]} 42. Ke4 {[%clk 0:00:06]}  Kd6 {[%clk 0:01:34]} 43. Bd1 {[%clk 0:00:04]}  g3 {[%clk 0:01:23]} 44. Kf3 {[%clk 0:00:04]}  e4+ {[%clk 0:01:17]} 45. Kxg3 {[%clk 0:00:03]}  Ke5 {[%clk 0:01:18]} 46. Kg4 {[%clk 0:00:01]}  Kd4 {[%clk 0:01:17]} 47. Kf4 {[%clk 0:00:01]}  e3 {[%clk 0:01:17]} 48. Kf3 {[%clk 0:00:00]}  g5 {[%clk 0:01:16]} 0-1


[Site "https://www.chess.com"]